Cogmind - Beta 13 @@@ ROGUE MODE // 2024.07.07 @ 00:56:01 Player: asta Result: Destroyed by S-27 Virus with Autogun Performance ------------- Evolutions (1) 500 Regions Visited (5) 1000 Robots Destroyed (17) 85 Value Destroyed (266) 266 Prototype IDs (1) 20 Alien Tech Used (0) 0 Bonus (-8) -8 TOTAL SCORE: 1863 Bonus ------- Friendly Fire -8 Cogmind --------- Core Integrity 0/400 Matter 87/300 Energy 27/160 System Corruption 0% Temperature Cool (0) Movement Core (150) Ox2 Location -6/Proximity Caves Parts ------- > --- POWER (1) -------- Light Nuclear Core > --- PROPULSION (3) --- (None) > --- UTILITY (3) ------ Weight Redist. System > --- WEAPON (2) ------- Grenade Launcher > --- INVENTORY (5) ---- Improved Light Cannon Peak State ------------ > --- POWER ------------ Light Ion Engine > --- PROPULSION ------- Improved Hover Unit Improved Hover Unit > --- UTILITY ---------- Cooling System Small Matter Pod > --- WEAPON ----------- Autogun Autogun > --- INVENTORY -------- (None) [Rating: 12] Favorites ----------- Power Light Ion Engine Engine Light Ion Engine Power Core Light Nuclear Core Propulsion Improved Hover Unit Leg Aluminum Leg Hover Unit Improved Hover Unit Flight Unit Flight Unit Utility Weight Redist. System Device Weight Redist. System Storage Small Matter Pod Weapon Light EM Pulse Cannon Energy Gun Small Laser Energy Cannon Light EM Pulse Cannon Ballistic Gun Autogun Launcher Grenade Launcher Build | -11 -10 -9 -9 -7 -6 ------- Run | Yrd Mat Mat Min Zio Pro Slots Evolved 2 | . . 2 . . . Power . | . . . . . . Propulsion 1 | . . 1 . . . Utility 1 | . . 1 . . . Weapon . | . . . . . . Parts Attached 26 | 6 7 9 . 2 2 Power 3 | 1 . 1 . . 1 Engine 2 | 1 . 1 . . . Core 1 | . . . . . 1 Reactor . | . . . . . . Propulsion 8 | 2 2 4 . . . Treads . | . . . . . . Leg 2 | 2 . . . . . Wheel . | . . . . . . Hover 5 | . 2 3 . . . Flight 1 | . . 1 . . . Utility 4 | . 3 1 . . . Device 3 | . 2 1 . . . Storage 1 | . 1 . . . . Processor . | . . . . . . Hackware . | . . . . . . Protection . | . . . . . . Artifact . | . . . . . . Weapon 11 | 3 2 3 . 2 1 Energy Gun 3 | 2 . 1 . . . Energy Cannon 3 | . . 2 . 1 . Ballistic Gun 3 | 1 2 . . . . Ballistic Cannon . | . . . . . . Launcher 2 | . . . . 1 1 Special Weapon . | . . . . . . Impact Weapon . | . . . . . . Slashing Weapon . | . . . . . . Piercing Weapon . | . . . . . . Special Melee Weapon . | . . . . . . Unidentified Prototypes 1 | . . 1 . . . Parts Lost 10 | . . 7 . . 3 Power 1 | . . 1 . . . Propulsion 4 | . . 3 . . 1 Utility 2 | . . 2 . . . Weapon 3 | . . 1 . . 2 Highest Loss Streak 5 | . . 5 . . 3 To Critical Strikes . | . . . . . . Average Slot Usage (%) 57 | . 96 48 44 44 44 Engine 4 | . 14 6 . . . Leg 1 | . 4 . . . . Hover 14 | . 23 16 11 11 11 Device 10 | . 11 6 11 11 11 Storage 4 | . 14 4 . . . Energy Gun 1 | . 4 2 . . . Energy Cannon 12 | . . . 22 20 22 Ballistic Gun 7 | . 23 11 . . . Naked Turns 39 | . . 39 . . . Heaviest Build 12 | 6 12 11 8 8 8 Greatest Support 20 | 20 20 20 13 13 13 Greatest Overweight (x) 1 | . . 1 . . 1 Average Overweight (x) . | . . . . . . Largest Inventory Capacity 5 | 5 5 5 5 5 5 Average Capacity 5 | 5 5 5 5 5 5 Most Carried 5 | 1 3 5 2 2 3 Average Carried 1 | . 1 3 2 2 2 Final Capacity 5 | 5 5 5 5 5 5 Final Carried 3 | . 3 2 2 2 1 Class Distribution -------------------- 100% | Mutant Dominant Class ---------------- Mutant | -10/Materials Mutant | -9/Materials Mutant | -9/Mines Mutant | -7/Zion Mutant | -6/Proximity Caves Resources | -11 -10 -9 -9 -7 -6 ----------- Run | Yrd Mat Mat Min Zio Pro Matter Collected 471 | 210 195 66 . . . Remotely . | . . . . . . Salvage Created 426 | 12 195 191 . . 28 Parts 39 | 2 21 13 . . 3 Haulers Intercepted . | . . . . . . Recyclers Shooed . | . . . . . . Parts Field Recycled . | . . . . . . Retrieved Matter . | . . . . . . Parts Self-Destructed . | . . . . . . Prevented . | . . . . . . Kills | -11 -10 -9 -9 -7 -6 ------- Run | Yrd Mat Mat Min Zio Pro Combat Hostiles Destroyed 12 | . 7 4 . . 1 Guns 11 | . 7 4 . . . Cannons 1 | . . . . . 1 Classes Destroyed 6 | 1 4 1 . . . Tunneler 1 | 1 . . . . . Recycler 1 | . . 1 . . . Operator 2 | . 2 . . . . Watcher 1 | . 1 . . . . Swarmer 10 | . 6 3 . . 1 Grunt 2 | . 1 1 . . . Best Kill Streak 4 | 1 4 3 . . 1 Combat Bots Only 3 | . 3 2 . . 1 Max Kills in Single Turn 2 | 1 2 1 . . 1 Gunslinging 1 | . 1 . . . . Exploded . | . . . . . . Melee . | . . . . . . Uniques/NPCs Destroyed . | . . . . . . Combat | -11 -10 -9 -9 -7 -6 -------- Run | Yrd Mat Mat Min Zio Pro Hostile Shots Fired 123 | . 22 80 3 . 18 Missed 31 | . 9 19 1 . 2 Damage Taken 1152 | . 153 725 27 . 247 Core 451 | . 36 340 . . 75 Absorbed by Shields . | . . . . . . Core Remaining (%) 92 | 100 85 . . . . Volleys Fired 46 | 1 22 20 . 1 2 Largest 2 | 2 2 2 . 2 2 Hottest 112 | 90 46 46 . 86 112 Shots Fired 83 | 2 44 31 . 2 4 Gun 77 | 2 44 31 . . . Cannon 5 | . . . . 1 4 Launcher 1 | . . . . 1 . Special . | . . . . . . Kinetic 66 | . 44 22 . . . Thermal 2 | 2 . . . . . Explosive 1 | . . . . 1 . Electromagnetic 14 | . . 9 . 1 4 Robot Hit Streak 8 | . 8 5 . . 3 Robot Miss Streak 5 | . 5 4 . . 1 Penetration Max . | . . . . . . Secondary Targets 4 | . 2 2 . . . Max Gunslinging Chain 1 | . 1 1 . . . Shots Hit Robots 43 | . 24 16 . . 3 Core Hits 24 | 1 13 8 . 1 1 Critical Kills 1 | . 1 . . . . Critical Parts Destroyed . | . . . . . . Critical Strikes 1 | . 1 . . . . Destroy 1 | . 1 . . . . Melee Attacks . | . . . . . . Impact . | . . . . . . Slashing . | . . . . . . Piercing . | . . . . . . Sneak Attacks . | . . . . . . Combat Hostiles . | . . . . . . Follow-up Attacks . | . . . . . . Damage Inflicted 733 | 10 352 306 . 8 57 Guns 601 | 10 352 239 . . . Cannons 57 | . . . . . 57 Explosions 75 | . . 67 . 8 . Melee . | . . . . . . Ramming . | . . . . . . Kinetic 489 | . 352 137 . . . Thermal 77 | 10 . 67 . . . Explosive 8 | . . . . 8 . Electromagnetic 159 | . . 102 . . 57 Impact . | . . . . . . Slashing . | . . . . . . Piercing . | . . . . . . Highest Corruption . | . . . . . . Average Corruption . | . . . . . . Corruption Purged . | . . . . . . Corruption Blocked . | . . . . . . Overload Shots . | . . . . . . Overflow Damage 1 | . . 1 . . . Projectiles . | . . . . . . Explosions 1 | . . 1 . . . Melee . | . . . . . . Knockbacks . | . . . . . . Impact . | . . . . . . Kinetic . | . . . . . . Secondary . | . . . . . . Self-Inflicted Damage 26 | . . 26 . . . Shots 1 | . . 1 . . . Rammed . | . . . . . . Targets Rammed . | . . . . . . Kicked . | . . . . . . Crushed . | . . . . . . Highest Temperature 31 | 30 30 30 . 3 31 Average Temperature 10 | 18 12 7 . 2 16 Received Heat Transfer 192 | . 18 132 15 . 27 Siege Activations . | . . . . . . Robots Corrupted . | . . . . . . Combat Hostiles . | . . . . . . Parts Fried . | . . . . . . Impact Corruptions . | . . . . . . Robots Melted . | . . . . . . Combat Hostiles . | . . . . . . Parts Melted . | . . . . . . Heat Transferred 125 | 25 . 100 . . . Parts Sabotaged . | . . . . . . Parts Stolen . | . . . . . . Parts Stripped . | . . . . . . Power Chain Reactions 1 | . . 1 . . . Alert | -11 -10 -9 -9 -7 -6 ------- Run | Yrd Mat Mat Min Zio Pro Peak Influence 274 | 5 274 205 90 . . Initial 115 | . 3 115 75 . . Average 105 | . 106 151 81 . . Maximum Alert Level 1 | . 1 1 . . . Low Security (%) 87 | 100 75 93 100 . . Level 1 12 | . 24 6 . . . Level 2 . | . . . . . . Level 3 . | . . . . . . Level 4 . | . . . . . . Level 5 . | . . . . . . High Security . | . . . . . . Max Security . | . . . . . . Squads Dispatched 3 | . 1 1 . . 1 Investigation 1 | . . . . . 1 Extermination . | . . . . . . Reinforcement 2 | . 1 1 . . . Assault . | . . . . . . Garrison . | . . . . . . Intercept . | . . . . . . Searches Triggered . | . . . . . . Construction Impeded . | . . . . . . Haulers Reinforced . | . . . . . . Active Scanning Responses . | . . . . . . Cargo Convoy Interrupts . | . . . . . . Stealth | -11 -10 -9 -9 -7 -6 --------- Run | Yrd Mat Mat Min Zio Pro Distress Signals . | . . . . . . Communications Jammed . | . . . . . . Distress Signals . | . . . . . . Times Spotted 43 | . 12 10 5 2 14 Peak Tracking Total 9 | . 3 9 5 1 5 Tactical Retreats 7 | . . . . 1 6 Traps | -11 -10 -9 -9 -7 -6 ------- Run | Yrd Mat Mat Min Zio Pro Traps Triggered 1 | . 1 . . . . Indirectly . | . . . . . . Trap Hack Attempts . | . . . . . . Triggered . | . . . . . . Disarmed . | . . . . . . Reprogrammed . | . . . . . . Reused . | . . . . . . Traps Extracted . | . . . . . . Installed . | . . . . . . Triggered . | . . . . . . Machines | -11 -10 -9 -9 -7 -6 ---------- Run | Yrd Mat Mat Min Zio Pro Machines Disabled 2 | . . 2 . . . Max in Single Turn 1 | . . 1 . . . Machines Repaired . | . . . . . . Machines Dismantled . | . . . . . . Machines Sabotaged . | . . . . . . Overloaded Fab Kills . | . . . . . . Hacking | -11 -10 -9 -9 -7 -6 --------- Run | Yrd Mat Mat Min Zio Pro Machines Accessed 5 | . 3 1 . . 1 Terminals 5 | . 3 1 . . 1 Fabricators . | . . . . . . Repair Stations . | . . . . . . Recycling Units . | . . . . . . Scanalyzers . | . . . . . . Garrison Access . | . . . . . . Total Hacks 14 | . 8 2 . . 4 Successful 8 | . 4 . . . 4 Failed 6 | . 4 2 . . . Catastrophic 1 | . 1 . . . . Database Lockouts . | . . . . . . Manual 2 | . . 2 . . . Terminals 14 | . 8 2 . . 4 Fabricators . | . . . . . . Repair Stations . | . . . . . . Recycling Units . | . . . . . . Scanalyzers . | . . . . . . Garrison Access . | . . . . . . Terminal Hacks 8 | . 4 . . . 4 Record 4 | . . . . . 4 Robot Analysis 1 | . 1 . . . . Investigation Status 1 | . 1 . . . . Reinforcement Status 1 | . 1 . . . . Recall Investigation 1 | . 1 . . . . Fabricator Hacks . | . . . . . . Repair Station Hacks . | . . . . . . Recycling Unit Hacks . | . . . . . . Scanalyzer . | . . . . . . Garrison Access Hacks . | . . . . . . Unauthorized Hacks . | . . . . . . Terminals . | . . . . . . Fabricators . | . . . . . . Repair Stations . | . . . . . . Recycling Units . | . . . . . . Scanalyzers . | . . . . . . Garrison Access . | . . . . . . Data Cores Recovered . | . . . . . . Used . | . . . . . . Hacking Detections 4 | . 2 1 . . 1 Full Trace Events 2 | . 1 . . . 1 Feedback Events . | . . . . . . Feedback Blocked . | . . . . . . Robot Schematics Acquired 3 | . . . . 3 . Robots Built . | . . . . . . Authchips . | . . . . . . Time . | . . . . . . Total Robot Build Rating . | . . . . . . Part Schematics Acquired 15 | . . . . 15 . Parts Built . | . . . . . . Authchips . | . . . . . . Time . | . . . . . . Total Part Build Rating . | . . . . . . Parts Repaired . | . . . . . . Time . | . . . . . . Parts Recycled . | . . . . . . Recycled Matter . | . . . . . . Retrieved Matter . | . . . . . . Retrieved Components . | . . . . . . Parts Scanalyzed . | . . . . . . Part Schematics Acquired . | . . . . . . Parts Damaged . | . . . . . . Bothacking | -11 -10 -9 -9 -7 -6 ------------ Run | Yrd Mat Mat Min Zio Pro Used RIF Installer . | . . . . . . Robots Hacked . | . . . . . . Non-combat . | . . . . . . Combat . | . . . . . . Robot Hacks Applied . | . . . . . . Relay Couplers Released . | . . . . . . Fabnet Peak Effective % . | . . . . . . Robots Rewired . | . . . . . . Allies Hacked . | . . . . . . Hacks Repelled . | . . . . . . Allies | -11 -10 -9 -9 -7 -6 -------- Run | Yrd Mat Mat Min Zio Pro Total Allies . | . . . . . . Largest Group . | . . . . . . Highest-Rated Group . | . . . . . . Highest-Rated Ally . | . . . . . . Total Orders . | . . . . . . Ally Attacks . | . . . . . . Total Damage . | . . . . . . Kills . | . . . . . . Allies Corrupted . | . . . . . . Allies Melted . | . . . . . . Intel | -11 -10 -9 -9 -7 -6 ------- Run | Yrd Mat Mat Min Zio Pro Robot Analysis Total 1 | . 1 . . . . Derelict Logs Recovered 1 | . . . . . 1 Drone Launches . | . . . . . . Drone Recoveries . | . . . . . . Exploration | -11 -10 -9 -9 -7 -6 ------------- Run | Yrd Mat Mat Min Zio Pro Turns Passed 888 | 59 197 161 60 97 314 Spaces Moved 1036 | 42 193 178 100 152 371 Core 80 | 5 . 75 . . . Treads . | . . . . . . Legs 61 | 37 24 . . . . Wheels . | . . . . . . Hover 895 | . 169 103 100 152 371 Flight . | . . . . . . Fastest Speed 50 | 50 56 50 60 60 60 Average Speed 69 | 111 63 53 60 60 82 Slowest Speed 120 | 120 120 100 60 60 120 Overloaded Moves . | . . . . . . Propulsion Burnouts . | . . . . . . Robots Hopped . | . . . . . . Cave-ins Triggered . | . . . . . . Exploration Rate (%) 25 | 4 33 19 29 10 57 Regions Visited 5 Branch Regions 3 Pre-discovered Areas 1 | . . . . . 1 Known Exits Taken . | . . . . . . Unknown Exits Taken 5 | 1 1 1 1 1 . Scrap Searched . | . . . . . . Spaces Dug 3 | . . . . 3 . Terrain Destroyed 3 | . . . . 3 . Melee . | . . . . . . Projectile . | . . . . . . AOE 3 | . . . . 3 . Terrain Rammed . | . . . . . . Walls Destroyed . | . . . . . . Machines Disabled . | . . . . . . Actions | -11 -10 -9 -9 -7 -6 --------- Run | Yrd Mat Mat Min Zio Pro Total 1128 | 50 230 219 99 154 376 Wait . | . . . . . . Move 1031 | 41 192 177 99 151 371 Hop . | . . . . . . Pick Up 13 | 1 4 7 . . 1 Fast Attach 12 | 5 6 1 . . . Attach 12 | 1 1 8 . . 2 Detach 1 | . . 1 . . . Swap 2 | . . . . 2 . Drop 11 | 1 5 5 . . . Fire 46 | 1 22 20 . 1 2 Melee . | . . . . . . Ram . | . . . . . . Kick . | . . . . . . Crush . | . . . . . . Escape Stasis . | . . . . . . Rewire . | . . . . . . Trap . | . . . . . . Miscellaneous . | . . . . . . Route ------- -11/Scrapyard -10/Materials -9/Materials (discovered 3 exits: [*Min x2] / [*Sto]) -9/Mines -7/Zion -6/Proximity Caves History --------- Turn | Location | Event 3 | -11/Scrapyard | Discovered new exit (range 15) 60 | -11/Scrapyard | Entered Materials 237 | -10/Materials | Discovered new exit (range 7) 257 | -10/Materials | Entered another Materials area 257 | -9/Materials | Evolved 2 slots: Propulsion x1, Utility x1 290 | -9/Materials | Discovered new exit (range 15) 302 | -9/Materials | Discovered new exit (range 9) 304 | -9/Materials | Build established: Mutant 368 | -9/Materials | Lost 5 parts (3n2u) 375 | -9/Materials | Core integrity fell below 50% 381 | -9/Materials | Core integrity fell below 20% 415 | -9/Materials | Discovered new exit (range 7) 418 | -9/Materials | Entered Mines 474 | -9/Mines | A Derelict revealed a hidden shortcut to a safe place 478 | -9/Mines | Entered Zion 494 | -7/Zion | Given A8's code to call for help 530 | -7/Zion | Attacked by Zionites 552 | -7/Zion | Discovered new exit (range 10) 575 | -7/Zion | Entered Proximity Caves 889 | -6/Proximity Caves | Destroyed by S-27 Virus with Autogun Last Messages --------------- Connecting with Outpost Terminal... Current location identified: Proximity Caves >>Query(Status Report 419P) PATROL 7C FAILED TO REPORT. REQUESTING REINFORCEMENTS. >>Query(Status Report 148Y) RESTORED EXTERNAL LINK TO 0B10. >>Query(Status Report 011C) DETECTED INCREASED ACTIVITY IN CAVE 24. >>Query(Status Report 382X) INTERCEPTED DERELICT INTEL. Loading 6 Proximity Caves zones... ALERT: Suspicious activity at Terminal P001. Dispatching Investigation squad. S-27 Virus springs to life. S-27 Virus destroyed. Lgt. EM Pulse Cannon destroyed. Acquired Lgt. Nuclear Core. Lgt. EM Pulse Cannon destroyed. Imp. Hover Unit destroyed. Map ----- +----------------------------------------------------+ | """"""" #??????????# #### ???????? | | #?????????## ## ???????? | | " " " #???????### ???????? | | """""" #??????## ???????? | | """"""" #?????## ## ???????? | | #????## ####### ???????? | | #???## ## ##?????## ???????? | | ###### #######??## ### ######????## ???????? | | ???### #??????### ## #???????????????????? | | #??# #??????# #???????????????????? | | #?## ##?????# #####????????????????? | | ### ##?????# #????????????????? | | ## ##????# #????????????????? | | # ## #????# #####+##### #????????????????? | | # ?# ###??# #""" """#???????????????????? | | ?# ##?# #" """#???????????????????? | | #?## ### #"T """#???????????????????? | | # ???# ## #" """#???????????????????? | | # ???### #" #???????????????????? | | # ?????# #" "#???????????????????? | | ??????# #" "#????????#??????????? | | # ##??????# #" "#????? ##?????????? | | ##??????# #" "#?? ???????? | | ?????# #####+##s## ???????? | | ????# ## =s= ???????? | | ???# #?### ## @ #????????????? | | ???# ????######### ### ##????????????? | | ???## ?????????????###??? g ###?????????????? | | ????# ???????????????????? ##???????????????? | | ????# ????????????????????? ???????????????? | | ???? ?????????????????????? ?????????????? | | ???? ??????????????????????? ########????????????? | | ???????????????????????????? #???????????????????? | | #### ## ##???????????? #???????????????????? | | ## #??????????????#???????????????????? | | ## ########??????????????????????????????????? | | ### ##?????????????????????????????????????????? | | ######??????????????????????????????????????????? | | #??????????????????????????????????????????????? | | ##?????????????????????????????????????????????? | | ###???????????????????????????????????????????? | | ##??????????????????????????????????????????? | | #??????????????????????????????????????????? | | ##??????????????????????????????????????????? | | ##???????????????????????????????????????????? | | # ##????????????????????????????????????????????? | | # ##?????????????????????????????????????????????? | | ###??????????????????????????????????????????????? | | ?????????????????????????????????????????????????? | | ?????????????????????????????????????????????????? | +----------------------------------------------------+ Best States ------------- Heat Dissipation 47 Energy Generation 10 Energy Capacity 125 Matter Stores 250 Matter Capacity 350 Sight Range 16 Robot Scan Range 14 Terrain Scan Density 10 Additional Mass Support 6 Evasion (%) 55 Item Schematics ----------------- Spear | -7/Zion | Archive Proton Cannon | -7/Zion | Archive Mak. Salvage Targeting Computer | -7/Zion | Archive Arc Projector | -7/Zion | Archive Fusion Compressor | -7/Zion | Archive Adv. ECM Suite | -7/Zion | Archive Adv. Sensor Array | -7/Zion | Archive Antigrav System | -7/Zion | Archive Enh. Optical Array | -7/Zion | Archive Neutrino Core | -7/Zion | Archive Hvy. Laser | -7/Zion | Archive Matter Compressor | -7/Zion | Archive Hvy. Battle Rifle | -7/Zion | Archive Hvy. Pick | -7/Zion | Archive Mak. Leg | -7/Zion | Archive Robot Schematics ------------------ G-47 Trooper | -7/Zion | Archive R-06 Scavenger | -7/Zion | Archive H-55 Commando | -7/Zion | Archive Fabricated ------------ Nothing Alien Tech Used ----------------- None Achievements -------------- None Challenges ------------ None Game ------ Seed PointyHellfireCleaver Manual? 0 Play Time 00:16:41 Cumulative 7.4 hours Start 2024.07.07 @ 00:40:01 End 2024.07.07 @ 00:56:01 Sessions 1 Manual Loads 0 Difficulty Rogue Special Mode None Game No. 13 Rogue 11 Adventurer 2 Explorer 0 Win Type - Total 0 Types 0/0/0/0/0/0/0/0/0 Lore% 13 Gallery% 15 Achievement% 14 Wizard Run 0 Options --------- Layout 1 ASCII 0 Keyboard 0 Movement Mouse Keybinds 0 Fullscreen 1 Font 32/SmallcapsGlow Map View 50x40 Zoom Use 0% Tactical HUD 0 Map Filters NONE Filters NONE Steam 1 RUN: e4f0e557-dcb2-471b-aa0b-f3dfa9d7c0fe